fUSD/lending_fUSD_20240423
["ID","MTS","AMOUNT","RATE_DAILY","PERIOD"]
[323249433,1713846642727,-500.0,0.00012473,2]
[323249434,1713846642737,-500.0,0.00012473,2]
[323249435,1713846642746,-500.0,0.00012473,2]
[323249436,1713846642755,-500.0,0.00012473,2]
[323249437,1713846642764,-1821.68,0.00012473,2]
[323249438,1713846642773,-502.7,0.00012473,2]
[323249439,1713846642782,-500.0,0.00012473,2]
[323249440,1713846642792,-500.0,0.00012473,2]
[323249441,1713846642801,-500.0,0.00012473,2]
[323249442,1713846642811,-500.0,0.00012473,2]
[323249443,1713846642820,-527.55,0.00012473,2]
[323249444,1713846642829,-500.0,0.00012473,2]
[323249445,1713846642839,-155.11040826,0.00012474,2]
[323249446,1713846642849,-588.19,0.00012474,2]
[323249447,1713846642860,-500.0,0.00012474,2]
[323249448,1713846642870,-508.69101409,0.00012474,2]
[323249449,1713846642880,-500.0,0.00012474,2]
[323249450,1713846642889,-500.0,0.00012474,2]
[323249451,1713846642898,-500.0,0.00012474,2]
[323249452,1713846642908,-500.0,0.00012474,2]
[323249453,1713846642917,-500.0,0.00012474,2]
[323249454,1713846642926,-411.10777307,0.00012474,2]
[323249455,1713846642935,-470.23107132,0.00012474,2]
[323249456,1713846642944,-348.90282332,0.00012474,2]
[323249457,1713846642953,-500.0,0.00012474,2]
[323249458,1713846642963,-500.0,0.00012474,2]
[323249459,1713846642973,-504.4335535,0.00012474,2]
[323249460,1713846642982,-1458.88,0.00012474,2]
[323249461,1713846642992,-500.0,0.00012474,2]
[323249462,1713846643006,-485.28690856,0.00012474,2]
[323249463,1713846643015,-500.0,0.00012474,2]
[323249464,1713846643024,-500.0,0.00012474,2]
[323249465,1713846643034,-500.0,0.00012474,2]
[323249466,1713846643043,-500.0,0.00012474,2]
[323249467,1713846643052,-500.0,0.00012474,2]
[323249468,1713846643061,-500.0,0.00012474,2]
[323249469,1713846643070,-580.08,0.00012474,2]
[323249470,1713846643079,-500.0,0.00012474,2]
[323249471,1713846643088,-500.0,0.00012474,2]
[323249472,1713846643097,-500.0,0.00012474,2]
[323249473,1713846643107,-500.0,0.00012474,2]
[323249474,1713846643118,-500.0,0.00012474,2]
[323249475,1713846643126,-500.0,0.00012474,2]
[323249476,1713846643135,-1516.52,0.00012474,2]
[323249477,1713846643144,-500.0,0.00012474,2]
[323249479,1713846643153,-500.0,0.00012474,2]
[323249480,1713846643162,-500.0,0.00012474,2]
[323249481,1713846643171,-500.0,0.00012474,2]
[323249482,1713846643180,-500.0,0.00012474,2]
[323249483,1713846643189,-500.0,0.00012474,2]
[323249484,1713846643198,-500.0,0.00012474,2]
[323249485,1713846643206,-500.0,0.00012474,2]
[323249486,1713846643215,-500.0,0.00012474,2]
[323249487,1713846643225,-500.0,0.00012474,2]
[323249488,1713846643234,-1506.88,0.00012474,2]
[323249489,1713846643243,-500.0,0.00012474,2]
[323249490,1713846643252,-500.0,0.00012474,2]
[323249491,1713846643262,-500.0,0.00012474,2]
[323249492,1713846643271,-500.0,0.00012474,2]
[323249493,1713846643280,-500.0,0.00012474,2]
[323249494,1713846643289,-500.0,0.00012474,2]
[323249496,1713846643299,-500.0,0.00012474,2]
[323249498,1713846643309,-507.77792814,0.00012474,2]
[323249499,1713846643318,-500.0,0.00012474,2]
[323249500,1713846643327,-500.0,0.00012474,2]
[323249501,1713846643336,-500.0,0.00012474,2]
[323249502,1713846643345,-503.81185875,0.00012474,2]
[323249503,1713846643354,-507.55782123,0.00012474,2]
[323249504,1713846643365,-683.51,0.00012474,2]
[323249505,1713846643374,-468.99601603,0.00012474,2]
[323249507,1713846643383,-500.0,0.00012474,2]
[323249513,1713846643591,-506.88789594,0.00012474,2]
[323249514,1713846643602,-500.0,0.00012474,2]
[323249515,1713846643612,-505.53135173,0.00012474,2]
[323249516,1713846643622,-501.48568207,0.00012474,2]
[323249517,1713846643632,-1212.29,0.00012474,2]
[323249518,1713846643642,-500.0,0.00012474,2]
[323249519,1713846643651,-500.0,0.00012474,2]
[323249520,1713846643661,-500.0,0.00012474,2]
[323249521,1713846643670,-500.0,0.00012474,2]
[323249522,1713846643680,-500.0,0.00012474,2]
[323249523,1713846643690,-506.89035017,0.00012474,2]
[323249524,1713846643699,-150.0,0.00012474,2]
[323249525,1713846643709,-500.0,0.00012474,2]
[323249526,1713846643718,-502.72402175,0.00012474,2]
[323249527,1713846643728,-392.87992962,0.00012474,2]
[323249528,1713846643737,-892.05,0.00012474,2]
[323249529,1713846643747,-1613.46,0.00012474,2]
[323249530,1713846643757,-500.0,0.00012474,2]
[323249531,1713846643768,-500.0,0.00012474,2]
[323249532,1713846643778,-415.76606466,0.00012474,2]
[323249533,1713846643788,-500.0,0.00012474,2]
[323249534,1713846643798,-500.0,0.00012474,2]
[323249535,1713846643808,-500.0,0.00012474,2]
[323249536,1713846643818,-500.0,0.00012474,2]
[323249537,1713846643828,-500.0,0.00012474,2]
[323249538,1713846643838,-1346.95,0.00012474,2]
[323249539,1713846643847,-500.0,0.00012474,2]
[323249540,1713846643857,-500.0,0.00012474,2]
[323249541,1713846643868,-500.0,0.00012474,2]
[323249542,1713846643878,-500.0,0.00012474,2]
[323249543,1713846643888,-500.0,0.00012474,2]
[323249544,1713846643897,-500.0,0.00012474,2]
[323249545,1713846643907,-624.21,0.00012474,2]
[323249546,1713846643916,-500.0,0.00012474,2]
[323249547,1713846643926,-500.0,0.00012474,2]
[323249548,1713846643936,-510.35578583,0.00012474,2]
[323249549,1713846643946,-500.0,0.00012474,2]
[323249550,1713846643956,-500.0,0.00012474,2]
[323249551,1713846643965,-500.0,0.00012474,2]
[323249552,1713846643975,-503.15753355,0.00012474,2]
[323249553,1713846643985,-511.36,0.00012474,2]
[323249554,1713846643997,-500.0,0.00012474,2]
[323249555,1713846644006,-500.0,0.00012474,2]
[323249556,1713846644016,-500.0,0.00012474,2]
[323249557,1713846644025,-555.46,0.00012474,2]
[323249558,1713846644035,-506.59242781,0.00012474,2]
[323249559,1713846644045,-505.18981573,0.00012474,2]
[323249560,1713846644055,-503.24,0.00012474,2]
[323249561,1713846644064,-618.6,0.00012474,2]
[323249562,1713846644074,-504.70685998,0.00012474,2]
[323249563,1713846644085,-500.0,0.00012474,2]
[323249564,1713846644095,-500.0,0.00012474,2]
[323249565,1713846644105,-302.31805575,0.00012474,2]
[323249566,1713846644120,-500.0,0.00012474,2]
[323249567,1713846644129,-1300.42,0.00012474,2]
[323249568,1713846644139,-500.0,0.00012474,2]
[323249569,1713846644149,-1247.91,0.00012474,2]
[323249570,1713846644163,-500.0,0.00012474,2]
[323249571,1713846644182,-500.0,0.00012474,2]
[323249572,1713846644194,-500.0,0.00012474,2]
[323249573,1713846644203,-500.0,0.00012474,2]
[323249574,1713846644212,-500.0,0.00012474,2]
[323249575,1713846644222,-500.0,0.00012474,2]
[323249576,1713846644231,-500.0,0.00012474,2]
[323249577,1713846644241,-500.0,0.00012474,2]
[323249578,1713846644249,-500.0,0.00012474,2]
[323249579,1713846644259,-500.0,0.00012474,2]
[323249580,1713846644268,-500.0,0.00012474,2]
[323249581,1713846644277,-508.79515921,0.00012474,2]
[323249582,1713846644286,-500.0,0.00012474,2]
[323249583,1713846644295,-509.07322661,0.00012474,2]
[323249584,1713846644304,-500.0,0.00012474,2]
[323249585,1713846644313,-500.0,0.00012474,2]
[323249586,1713846644323,-1432.24,0.00012474,2]
[323249587,1713846644332,-500.0,0.00012474,2]
[323249588,1713846644341,-500.0,0.00012474,2]
[323249589,1713846644350,-509.04350508,0.00012474,2]
[323249590,1713846644360,-500.0,0.00012474,2]
[323249591,1713846644372,-500.0,0.00012474,2]
[323249592,1713846644385,-500.0,0.00012474,2]
[323249593,1713846644394,-500.0,0.00012474,2]
[323249594,1713846644404,-561.36,0.00012474,2]
[323249595,1713846644414,-500.0,0.00012474,2]
[323249596,1713846644423,-500.0,0.00012474,2]
[323249597,1713846644433,-500.0,0.00012474,2]
[323249598,1713846644443,-504.3259686,0.00012474,2]
[323249599,1713846644452,-500.0,0.00012474,2]
[323249600,1713846644462,-507.69948382,0.00012474,2]
[323249601,1713846644473,-515.26461601,0.00012474,2]
[323249602,1713846644482,-500.0,0.00012474,2]
[323249603,1713846644493,-500.0,0.00012474,2]
[323249604,1713846644503,-500.0,0.00012474,2]
[323249605,1713846644514,-500.0,0.00012474,2]
[323249606,1713846644525,-500.0,0.00012474,2]
[323249607,1713846644535,-500.0,0.00012474,2]
[323249608,1713846644545,-500.0,0.00012474,2]
[323249609,1713846644555,-500.0,0.00012474,2]
[323249610,1713846644565,-500.0,0.00012474,2]
[323249611,1713846644574,-500.0,0.00012474,2]
[323249612,1713846644585,-500.0,0.00012474,2]
[323249613,1713846644595,-500.0,0.00012474,2]
[323249614,1713846644605,-504.3034902,0.00012474,2]
[323249615,1713846644618,-511.65626804,0.00012474,2]
[323249616,1713846644627,-500.0,0.00012474,2]
[323249617,1713846644636,-500.0,0.00012474,2]
[323249618,1713846644646,-500.0,0.00012474,2]
[323249619,1713846644656,-500.0,0.00012474,2]
[323249620,1713846644666,-500.0,0.00012474,2]
[323249621,1713846644677,-500.0,0.00012474,2]
[323249622,1713846644687,-500.0,0.00012474,2]
[323249623,1713846644698,-500.0,0.00012474,2]
[323249624,1713846644708,-500.0,0.00012474,2]
[323249625,1713846644720,-500.0,0.00012474,2]
[323249626,1713846644730,-572.94,0.00012474,2]
[323249627,1713846644740,-500.0,0.00012474,2]
[323249628,1713846644750,-500.0,0.00012474,2]
[323249629,1713846644761,-500.0,0.00012474,2]
[323249630,1713846644772,-500.0,0.00012474,2]
[323249631,1713846644783,-502.62017985,0.00012474,2]
[323249632,1713846644794,-500.0,0.00012474,2]
[323249633,1713846644805,-500.0,0.00012474,2]
[323249634,1713846644816,-1087.32,0.00012474,2]
[323249635,1713846644826,-500.0,0.00012474,2]
[323249636,1713846644837,-500.0,0.00012474,2]
[323249637,1713846644848,-500.0,0.00012474,2]
[323249638,1713846644858,-500.0,0.00012474,2]
[323249639,1713846644870,-500.0,0.00012474,2]
[323249640,1713846644880,-500.0,0.00012474,2]
[323249641,1713846644892,-500.0,0.00012474,2]
[323249642,1713846644902,-501.42621343,0.00012474,2]
[323249643,1713846644912,-500.0,0.00012474,2]
[323249644,1713846644922,-500.0,0.00012474,2]
[323249645,1713846644932,-500.0,0.00012474,2]
[323249646,1713846644942,-500.0,0.00012474,2]
[323249647,1713846644953,-500.0,0.00012474,2]
[323249648,1713846644964,-500.0,0.00012474,2]
[323249649,1713846644974,-500.0,0.00012474,2]
[323249650,1713846644986,-2330.69,0.00012474,2]
[323249651,1713846644999,-500.0,0.00012474,2]
[323249652,1713846645010,-500.0,0.00012474,2]
[323249653,1713846645021,-500.0,0.00012474,2]
[323249654,1713846645031,-500.0,0.00012474,2]
[323249655,1713846645042,-538.18,0.00012474,2]
[323249656,1713846645052,-500.0,0.00012474,2]
[323249657,1713846645064,-500.0,0.00012474,2]
[323249658,1713846645075,-500.0,0.00012474,2]
[323249659,1713846645087,-500.0,0.00012474,2]
[323249660,1713846645097,-500.0,0.00012474,2]
[323249661,1713846645108,-500.0,0.00012474,2]
[323249662,1713846645121,-500.0,0.00012474,2]
[323249663,1713846645132,-1598.13,0.00012474,2]
[323249664,1713846645142,-500.0,0.00012474,2]
[323249665,1713846645152,-500.0,0.00012474,2]
[323249666,1713846645163,-500.0,0.00012474,2]
[323249667,1713846645174,-500.0,0.00012474,2]
[323249668,1713846645184,-500.0,0.00012474,2]
[323249669,1713846645195,-500.0,0.00012474,2]
[323249670,1713846645206,-747.56,0.00012474,2]
[323249671,1713846645216,-500.0,0.00012474,2]
[323249672,1713846645228,-500.0,0.00012474,2]
[323249673,1713846645238,-500.0,0.00012474,2]
[323249674,1713846645249,-500.0,0.00012474,2]
[323249675,1713846645259,-500.0,0.00012474,2]
[323249676,1713846645271,-506.59525339,0.00012474,2]
[323249677,1713846645282,-500.0,0.00012474,2]
[323249678,1713846645292,-500.0,0.00012474,2]
[323249679,1713846645303,-500.0,0.00012474,2]
[323249680,1713846645313,-2923.36,0.00012474,2]
[323249681,1713846645323,-500.0,0.00012474,2]
[323249682,1713846645335,-500.0,0.00012474,2]
[323249683,1713846645346,-500.0,0.00012474,2]
[323249684,1713846645357,-500.0,0.00012474,2]
[323249685,1713846645369,-501.35492506,0.00012474,2]
[323249686,1713846645380,-503.51906711,0.00012474,2]
[323249687,1713846645391,-500.0,0.00012474,2]
[323249688,1713846645401,-500.0,0.00012474,2]
[323249689,1713846645411,-500.0,0.00012474,2]
[323249690,1713846645422,-1477.85,0.00012474,2]
[323249691,1713846645433,-1247.37,0.00012474,2]
[323249692,1713846645443,-502.54093371,0.00012474,2]
[323249693,1713846645453,-1074.63,0.00012474,2]
[323249694,1713846645464,-500.0,0.00012474,2]
[323249695,1713846645474,-500.0,0.00012474,2]
[323249696,1713846645485,-500.0,0.00012474,2]
[323249697,1713846645494,-500.0,0.00012474,2]
[323249698,1713846645504,-500.0,0.00012474,2]
[323249699,1713846645513,-500.0,0.00012474,2]
[323249700,1713846645523,-500.0,0.00012474,2]
[323249701,1713846645533,-986.84,0.00012474,2]
[323249702,1713846645543,-500.0,0.00012474,2]
[323249703,1713846645553,-506.80469944,0.00012474,2]
[323249704,1713846645562,-515.88294832,0.00012474,2]
[323249705,1713846645572,-500.0,0.00012474,2]
[323249706,1713846645582,-500.0,0.00012474,2]
[323249707,1713846645591,-500.0,0.00012474,2]
[323249708,1713846645601,-500.0,0.00012474,2]
[323249709,1713846645611,-500.0,0.00012474,2]
[323249710,1713846645621,-500.0,0.00012474,2]
[323249711,1713846645631,-501.37179699,0.00012474,2]
[323249712,1713846645642,-865.97,0.00012474,2]
[323249713,1713846645652,-504.20659731,0.00012474,2]
[323249714,1713846645661,-518.85998052,0.00012474,2]
[323249715,1713846645671,-500.0,0.00012474,2]
[323249716,1713846645681,-500.0,0.00012474,2]
[323249717,1713846645690,-500.0,0.00012474,2]
[323249718,1713846645700,-500.0,0.00012474,2]
[323249719,1713846645709,-500.0,0.00012474,2]
[323249720,1713846645719,-500.0,0.00012474,2]
[323249721,1713846645729,-500.0,0.00012474,2]
[323249722,1713846645738,-783.29,0.00012474,2]
[323249723,1713846645748,-500.0,0.00012474,2]
[323249724,1713846645757,-295.41449985,0.00012474,2]
[323249725,1713846645766,-501.67580703,0.00012474,2]
[323249726,1713846645775,-502.55950854,0.00012474,2]
[323249727,1713846645784,-519.94968374,0.00012474,2]
[323249728,1713846645793,-500.0,0.00012474,2]
[323249729,1713846645803,-164.68478917,0.00012474,2]
[323249730,1713846645812,-500.0,0.00012474,2]
[323249731,1713846645821,-503.51455305,0.00012474,2]
[323249732,1713846645831,-500.0,0.00012474,2]
[323249733,1713846645840,-343.18332461,0.00012474,2]
[323249734,1713846645849,-500.0,0.00012474,2]
[323249735,1713846645858,-504.81438558,0.00012474,2]
[323249736,1713846645868,-500.0,0.00012474,2]
[323249737,1713846645878,-500.0,0.00012474,2]
[323249738,1713846645887,-1890.05,0.00012474,2]
[323249739,1713846645896,-383.39150634,0.00012474,2]
[323249740,1713846645906,-500.0,0.00012474,2]
[323249741,1713846645915,-500.0,0.00012474,2]
[323249742,1713846645925,-500.0,0.00012474,2]
[323249743,1713846645934,-500.0,0.00012474,2]
[323249744,1713846645944,-500.0,0.00012474,2]
[323249745,1713846645953,-500.0,0.00012474,2]
[323249746,1713846645962,-500.0,0.00012474,2]
[323249747,1713846645971,-3935.65,0.00012474,2]
[323249748,1713846645981,-500.0,0.00012474,2]
[323249749,1713846645990,-500.0,0.00012474,2]
[323249750,1713846646003,-624.23011509,0.00012474,2]
[323249751,1713846646012,-271.15125276,0.00012474,2]
[323249752,1713846646022,-501.43401447,0.00012474,2]
[323249753,1713846646031,-500.0,0.00012474,2]
[323249754,1713846646109,-508.20852727,0.00012474,2]
[323249755,1713846646120,-505.44901685,0.00012474,2]
[323249756,1713846646129,-503.57203334,0.00012474,2]
[323249757,1713846646138,-500.0,0.00012474,2]
[323249758,1713846646147,-552.56795361,0.00012474,2]
[323249759,1713846646156,-500.0,0.00012474,2]
[323249760,1713846646165,-507.19493994,0.00012474,2]
[323249762,1713846646175,-503.62066707,0.00012474,2]
[323249764,1713846646183,-500.0,0.00012474,2]
[323249766,1713846646192,-502.45791786,0.00012474,2]
[323249767,1713846646201,-505.44520656,0.00012474,2]
[323249768,1713846646210,-500.0,0.00012474,2]
[323249769,1713846646219,-500.0,0.00012474,2]
[323249770,1713846646228,-500.0,0.00012474,2]
[323249771,1713846646237,-500.0,0.00012474,2]
[323249772,1713846646246,-503.42029911,0.00012474,2]
[323249773,1713846646255,-500.0,0.00012474,2]
[323249774,1713846646264,-502.35800144,0.00012474,2]
[323249775,1713846646272,-500.0,0.00012474,2]
[323249776,1713846646281,-222.99303092,0.00012474,2]
[323249777,1713846646290,-500.0,0.00012474,2]
[323249778,1713846646299,-500.0,0.00012474,2]
[323249779,1713846646309,-500.0,0.00012474,2]
[323249780,1713846646318,-1114.06,0.00012474,2]
[323249781,1713846646327,-500.0,0.00012474,2]
[323249782,1713846646336,-500.0,0.00012474,2]
[323249783,1713846646345,-500.0,0.00012474,2]
[323249784,1713846646354,-500.0,0.00012474,2]
[323249785,1713846646366,-2345.26,0.00012474,2]
[323249786,1713846646375,-803.78,0.00012474,2]
[323249787,1713846646384,-500.0,0.00012474,2]
[323249788,1713846646393,-629.35,0.00012474,2]
[323249789,1713846646402,-500.0,0.00012474,2]
[323249791,1713846646411,-500.0,0.00012474,2]
[323249792,1713846646421,-1531.2,0.00012474,2]
[323249793,1713846646430,-500.0,0.00012474,2]
[323249794,1713846646439,-211.63834996,0.00012474,2]
[323249795,1713846646448,-500.0,0.00012474,2]
[323249796,1713846646457,-220.14010158,0.00012474,2]
[323249797,1713846646467,-467.60888425,0.00012474,2]
[323249798,1713846646476,-329.94745963,0.00012474,2]
[323249799,1713846646485,-597.52,0.00012474,2]
[323249800,1713846646494,-500.0,0.00012474,2]
[323249801,1713846646504,-500.0,0.00012474,2]
[323249802,1713846646514,-503.60266833,0.00012474,2]
[323249803,1713846646523,-500.0,0.00012474,2]
[323249804,1713846646533,-1953.89,0.00012474,2]
[323249805,1713846646542,-500.0,0.00012474,2]
[323249806,1713846646551,-500.0,0.00012474,2]
[323249807,1713846646561,-500.0,0.00012474,2]
[323249808,1713846646570,-500.0,0.00012474,2]
[323249809,1713846646580,-500.52456462,0.00012474,2]
[323249810,1713846646589,-500.0,0.00012474,2]
[323249811,1713846646598,-502.36542532,0.00012474,2]
[323249812,1713846646608,-500.0,0.00012474,2]
[323249813,1713846646624,-506.65730338,0.00012474,2]
[323249814,1713846646634,-500.0,0.00012474,2]
[323249815,1713846646643,-706.66,0.00012474,2]
[323249816,1713846646653,-588.23,0.00012474,2]
[323249817,1713846646663,-500.0,0.00012474,2]
[323249818,1713846646672,-791.95,0.00012474,2]
[323249819,1713846646681,-500.0,0.00012474,2]
[323249820,1713846646690,-500.0,0.00012474,2]
[323249821,1713846646699,-459.70189729,0.00012474,2]
[323249822,1713846646709,-500.0,0.00012474,2]
[323249823,1713846646718,-500.0,0.00012474,2]
[323249824,1713846646729,-500.0,0.00012474,2]
[323249825,1713846646738,-500.0,0.00012474,2]
[323249826,1713846646747,-500.0,0.00012474,2]
[323249827,1713846646756,-584.13801515,0.00012474,2]
[323249828,1713846646764,-500.0,0.00012474,2]
[323249829,1713846646774,-500.0,0.00012474,2]
[323249830,1713846646783,-500.0,0.00012474,2]
[323249831,1713846646792,-500.0,0.00012474,2]
[323249832,1713846646802,-500.0,0.00012474,2]
[323249833,1713846646811,-500.0,0.00012474,2]
[323249834,1713846646821,-412.42427579,0.00012474,2]
[323249835,1713846646830,-618.56923748,0.00012474,2]
[323249836,1713846646839,-500.0,0.00012474,2]
[323249837,1713846646848,-500.0,0.00012474,2]
[323249838,1713846646858,-500.0,0.00012474,2]
[323249839,1713846646872,-516.46284405,0.00012474,2]
[323249840,1713846646881,-605.44,0.00012474,2]
[323249841,1713846646891,-500.0,0.00012474,2]
[323249842,1713846646900,-540.63650867,0.00012474,2]
[323249843,1713846646909,-500.0,0.00012474,2]
[323249844,1713846646918,-500.0,0.00012474,2]
[323249845,1713846646928,-500.0,0.00012474,2]
[323249846,1713846646938,-606.51,0.00012474,2]
[323249847,1713846646947,-506.01837718,0.00012474,2]
[323249848,1713846646956,-396.20379576,0.00012474,2]
[323249849,1713846646965,-500.0,0.00012474,2]
[323249850,1713846646974,-500.0,0.00012474,2]
[323249851,1713846646983,-607.96,0.00012474,2]
[323249852,1713846646992,-500.0,0.00012474,2]
[323249853,1713846647005,-500.0,0.00012474,2]
[323249854,1713846647014,-500.0,0.00012474,2]
[323249855,1713846647023,-500.0,0.00012474,2]
[323249856,1713846647033,-500.0,0.00012474,2]
[323249857,1713846647042,-500.0,0.00012474,2]
[323249858,1713846647051,-500.0,0.00012474,2]
[323249859,1713846647060,-500.0,0.00012474,2]
[323249860,1713846647070,-500.0,0.00012474,2]
[323249861,1713846647080,-501.6464326,0.00012474,2]
[323249862,1713846647089,-500.0,0.00012474,2]
[323249863,1713846647099,-542.31368361,0.00012474,2]
[323249864,1713846647108,-500.0,0.00012474,2]
[323249865,1713846647122,-500.0,0.00012474,2]
[323249866,1713846647131,-500.0,0.00012474,2]
[323249867,1713846647140,-500.0,0.00012474,2]
[323249868,1713846647149,-500.0,0.00012474,2]
[323249869,1713846647158,-931.57,0.00012474,2]
[323249870,1713846647167,-500.0,0.00012474,2]
[323249871,1713846647175,-500.0,0.00012474,2]
[323249872,1713846647185,-500.0,0.00012474,2]
[323249873,1713846647194,-500.0,0.00012474,2]
[323249874,1713846647202,-195.67632497,0.00012474,2]
[323249875,1713846647212,-500.76115315,0.00012474,2]
[323249876,1713846647221,-500.0,0.00012474,2]
[323249877,1713846647230,-500.0,0.00012474,2]
[323249878,1713846647240,-500.0,0.00012474,2]
[323249879,1713846647249,-500.0,0.00012474,2]
[323249880,1713846647259,-500.0,0.00012474,2]
[323249881,1713846647268,-500.0,0.00012474,2]
[323249882,1713846647277,-500.0,0.00012474,2]
[323249883,1713846647286,-500.0,0.00012474,2]
[323249884,1713846647295,-500.0,0.00012474,2]
[323249885,1713846647304,-500.0,0.00012474,2]
[323249886,1713846647313,-510.00209836,0.00012474,2]
[323249887,1713846647323,-500.0,0.00012474,2]
[323249888,1713846647332,-1154.38,0.00012474,2]
[323249889,1713846647341,-1149.19,0.00012474,2]
[323249890,1713846647350,-500.38236092,0.00012474,2]
[323249891,1713846647359,-1690.56,0.00012474,2]
[323249892,1713846647371,-500.0,0.00012474,2]
[323249893,1713846647379,-500.0,0.00012474,2]
[323249894,1713846647388,-500.0,0.00012474,2]
[323249895,1713846647397,-543.51815004,0.00012474,2]
[323249896,1713846647406,-567.14021432,0.00012474,2]
[323249897,1713846647414,-500.0,0.00012474,2]
[323249898,1713846647423,-506.10956096,0.00012474,2]
[323249899,1713846647433,-367.90577902,0.00012474,2]
[323249900,1713846647443,-500.0,0.00012474,2]
[323249901,1713846647452,-510.9165463,0.00012474,2]
[323249902,1713846647461,-500.0,0.00012474,2]
[323249903,1713846647470,-500.0,0.00012474,2]
[323249904,1713846647479,-500.0,0.00012474,2]
[323249905,1713846647489,-522.45051832,0.00012474,2]
[323249906,1713846647498,-500.0,0.00012474,2]
[323249907,1713846647507,-500.0,0.00012474,2]
[323249908,1713846647517,-500.0,0.00012474,2]
[323249909,1713846647526,-500.0,0.00012474,2]
[323249910,1713846647535,-500.0,0.00012474,2]
[323249911,1713846647544,-510.44331447,0.00012474,2]
[323249912,1713846647553,-500.0,0.00012474,2]
[323249913,1713846647562,-500.0,0.00012474,2]
[323249914,1713846647571,-500.0,0.00012474,2]
[323249915,1713846647580,-1009.82,0.00012474,2]
[323249916,1713846647590,-1304.43,0.00012474,2]
[323249917,1713846647599,-518.42855253,0.00012474,2]
[323249918,1713846647608,-360.22134142,0.00012474,2]
[323249919,1713846647620,-2708.82,0.00012474,2]
[323249920,1713846647629,-567.01,0.00012474,2]
[323249921,1713846647639,-509.4328049,0.00012474,2]
[323249922,1713846647649,-500.0,0.00012474,2]
[323249923,1713846647659,-500.0,0.00012474,2]
[323249924,1713846647668,-204.03582892,0.00012474,2]
[323249925,1713846647678,-500.0,0.00012474,2]
[323249926,1713846647687,-502.51901481,0.00012474,2]
[323249927,1713846647697,-736.8,0.00012474,2]
[323249928,1713846647706,-1174.61,0.00012474,2]
[323249929,1713846647716,-560.09,0.00012474,2]
[323249930,1713846647725,-1164.65,0.00012474,2]
[323249931,1713846647734,-507.17336659,0.00012474,2]
[323249932,1713846647744,-504.75301912,0.00012474,2]
[323249933,1713846647753,-500.0,0.00012474,2]
[323249934,1713846647763,-503.93078649,0.00012474,2]
[323249935,1713846647772,-500.0,0.00012474,2]
[323249936,1713846647781,-500.0,0.00012474,2]
[323249937,1713846647791,-1147.27,0.00012474,2]
[323249938,1713846647800,-500.0,0.00012474,2]
[323249939,1713846647810,-500.0,0.00012474,2]
[323249940,1713846647819,-504.44998,0.00012474,2]
[323249941,1713846647830,-540.29,0.00012474,2]
[323249942,1713846647839,-500.87674506,0.00012474,2]
[323249943,1713846647848,-500.0,0.00012474,2]
[323249944,1713846647858,-500.0,0.00012474,2]
[323249945,1713846647872,-515.97623738,0.00012474,2]